[Event "Vienna Championship-B 2022"]
[Site "Vienna"]
[Date "2022.09.20"]
[Round "4.3"]
[White "Zetthofer, Gerald"]
[Black "Obenaus, Paul"]
[Result "1/2-1/2"]
[ECO "A30"]
[WhiteElo "2153"]
[BlackElo "1825"]
[Annotator "TA"]
[PlyCount "55"]
[EventDate "2022.09.17"]
[EventType "swiss"]
[EventCountry "AUT"]
[SourceTitle "playchess.com"]
[Source "ChessBase"]
[SourceQuality "1"]
[TimeControl "5400+30"]

{[%evp 20,55,0,0,0,-11,-18,-36,0,-38,-35,-29,-19,-22,-22,-22,0,0,0,0,0,0,0,0,0,-8,-24,-10,0,0,0,0,0,0,0,0,20,17]} 1. Nf3 {[%emt 0:00:05]} Nf6 {[%emt 0:00:06]} 2. c4 {[%emt 0:00:15]} e6 {[%emt 0:00:12]} 3. e3 {[%emt 0:00:47]} c5 {[%emt 0:01:25]} 4. b3 {[%emt 0:00:12]} b6 {[%emt 0:01:10]} 5. Bb2 {[%emt 0:00:18]} Bb7 {[%emt 0:00:27]} 6. Be2 {[%emt 0:00:43]} Be7 {[%emt 0:00:14]} 7. O-O {[%emt 0:00:09]} O-O {[%emt 0:00:05]} 8. Nc3 {[%emt 0:00:20]} Nc6 {[%emt 0:02:02]} 9. Rc1 {[%emt 0:00:24]} d5 {[%emt 0:08:21]} 10. cxd5 {[%emt 0:00:31]} Nxd5 {[%emt 0:01:24]} 11. d4 {[%emt 0:01:31]} cxd4 {[%emt 0:01:59] A30: Symmetrical English: Double Fianchetto and Hedgehog.} 12. Nxd5 {[%emt 0:02:41]} Qxd5 {[%emt 0:00:39]} 13. Bc4 {[%emt 0:04:19] [#]} Qf5 $146 {[%emt 0:05:50] Black is slightly better.} ({Predecessor:} 13... Qa5 14. Nxd4 Nxd4 15. Bxd4 Qg5 16. g3 Ba3 17. Rc2 Rad8 18. Qe2 Qf5 19. f3 e5 {½-½ (30) Antoms,G (2350)-Aleksandrov,A (2619) Liepaja 2015}) 14. Nxd4 {[%emt 0:01:30]} (14. Bd3 $5 {[%cal Rd3f5]} Qd5 15. Bc4 $15) 14... Nxd4 {[%emt 0:00:31]} 15. Bxd4 {[%emt 0:00:21]} ({But not} 15. Qxd4 Bf6 16. Qd2 Rfd8 $17) 15... Ba3 {[%emt 0:01:55] [#] ...Qg5 is the strong threat.} 16. Rc2 $1 {[%emt 0:09:02]} Be4 {[%emt 0:01:47]} 17. Rd2 {[%emt 0:02:07]} Qg5 {[%emt 0:13:00][%csl Ge4][%cal Rg5g2]} 18. f3 {[%emt 0:01:50][%cal Bf2f3,Bf3f4,Bf4f5][%mdl 32]} Bc6 {[%emt 0:02:32]} 19. Qe2 {[%emt 0:06:50]} Rfd8 {[%emt 0:04:20]} 20. f4 {[%emt 0:07:11]} Qh4 {[%emt 0:04:52]} 21. f5 {[%emt 0:07:30]} Bd6 {[%emt 0:04:50]} 22. h3 {[%emt 0:04:51]} Qg3 {[%emt 0:01:03] [#] ( -> ...Qh2+)} 23. Qg4 {[%emt 0:02:04]} Qxg4 {[%emt 0:05:26] The position is equal.} 24. hxg4 {[%emt 0:00:08]} e5 {[%emt 0:02:02] And now ...Bb4 would win.} 25. Bc3 {[%emt 0:01:54] Inhibits Bb4.} Bc5 {[%emt 0:01:11]} 26. Rxd8+ {[%emt 0:03:17]} Rxd8 {[%emt 0:00:04]} 27. Kf2 {[%emt 0:00:12]} b5 {[%emt 0:00:53]} 28. Be2 {[%emt 0:00:32] Weighted Error Value: White=0.06 (flawless) /Black=0.08 (flawless)} 1/2-1/2

[Event "Vienna Championship-B 2022"]
[Site "Vienna"]
[Date "2022.09.20"]
[Round "4.4"]
[White "Schwabeneder, Alois"]
[Black "Andresen, Erik"]
[Result "1/2-1/2"]
[ECO "A05"]
[WhiteElo "1911"]
[BlackElo "1879"]
[Annotator "TA"]
[PlyCount "48"]
[EventDate "2022.09.17"]
[EventType "swiss"]
[EventCountry "AUT"]
[SourceTitle "playchess.com"]
[Source "ChessBase"]
[SourceQuality "1"]
[TimeControl "5400+30"]

{[%evp 17,48,-7,-10,-31,-15,-31,-25,-19,0,-25,0,-29,0,-2,-4,-4,-2,-13,-1,-70,-38,-28,-38,-39,-33,-40,-34,-83,-79,-84,-79,-95,0]} 1. e4 {[%emt 0:00:04]} c5 {[%emt 0:00:10]} 2. Nf3 {[%emt 0:00:30]} d6 {[%emt 0:00:10]} 3. g3 {[%emt 0:01:08]} Nf6 {[%emt 0:00:14]} 4. d3 {[%emt 0:00:36]} g6 {[%emt 0:00:08]} 5. Bg2 {[%emt 0:00:11]} Bg7 {[%emt 0:00:05]} 6. O-O {[%emt 0:01:26]} O-O {[%emt 0:02:25]} 7. Re1 {[%emt 0:00:10]} Nc6 {[%emt 0:00:08]} 8. c3 {[%emt 0:01:23]} e5 {[%emt 0:00:10]} 9. Nbd2 {[%emt 0:04:35] 9.a4 is a critical line.} h6 {[%emt 0:02:05]} 10. Nf1 {[%emt 0:00:30] A05: Réti Opening: 1 Nf3 Nf6.} Be6 {[%emt 0:01:18]} 11. d4 {[%emt 0:01:50]} cxd4 {[%emt 0:03:19]} 12. cxd4 {[%emt 0:00:29] Black has an edge.} Bg4 {[%emt 0:06:39]} 13. dxe5 {[%emt 0:01:49] [#]} (13. d5 $5 {[%cal Rd5c6]} Nd4 14. Ne3 Bxf3 15. Bxf3 $11) 13... Nxe5 $146 {[%emt 0:02:09]} (13... dxe5 $5 {[%cal Rd8d1]} 14. Bd2 Nd4 $15) ({Predecessor:} 13... dxe5 14. Qxd8 Rfxd8 15. h3 Bxf3 16. Bxf3 Nd4 17. Bd1 Rac8 18. Nh2 Bf8 19. Nf3 Bb4 {0-1 (26) Charland,R (1570)-Gagnon,F (2030) Gatineau 2006}) 14. Qb3 {[%emt 0:02:09]} Nxf3+ {[%emt 0:05:06]} 15. Bxf3 {[%emt 0:01:56]} Bxf3 {[%emt 0:00:09]} 16. Qxf3 {[%emt 0:00:13]} Re8 {[%emt 0:00:15]} 17. Bd2 {[%emt 0:08:32]} Qe7 {[%emt 0:26:26][%cal Rf6e4]} 18. Bb4 {[%emt 0:01:13]} (18. Qd1 $11) 18... a5 {[%emt 0:05:20]} 19. Bc3 {[%emt 0:13:32]} Nxe4 {[%emt 0:05:36]} 20. Bxg7 {[%emt 0:00:32]} Kxg7 {[%emt 0:00:52]} 21. Qd3 {[%emt 0:00:44]} Nc5 $36 {[%emt 0:01:00][%mdl 2048] Black is more active.} 22. Rxe7 {[%emt 0:09:19]} (22. Qc3+ $15 {might be stronger.} Qf6 23. Qxf6+ Kxf6 24. Ne3) 22... Nxd3 $17 {[%emt 0:00:11] Black is better.} 23. Rxb7 {[%emt 0:00:23]} Re2 {[%emt 0:00:26][%csl LRb2,LRf2]} 24. Rd1 {[%emt 0:00:22]} Rxb2 {[%emt 0:08:22] Weighted Error Value: White=0.23 (precise) /Black=0.10 (very precise)} (24... Nxf2 $17 25. Rxd6 Nh3+ 26. Kh1 Nf2+ 27. Kg1 Ne4) 1/2-1/2

[Event "Vienna Championship-B 2022"]
[Site "Vienna"]
[Date "2022.09.20"]
[Round "4.5"]
[White "Iehl, William"]
[Black "Gratze, Michael"]
[Result "0-1"]
[ECO "E61"]
[WhiteElo "1781"]
[BlackElo "1954"]
[Annotator "TA"]
[PlyCount "78"]
[EventDate "2022.09.17"]
[EventType "swiss"]
[EventCountry "AUT"]
[SourceTitle "playchess.com"]
[Source "ChessBase"]
[SourceQuality "1"]
[TimeControl "5400+30"]

{[%evp 15,78,25,39,-12,17,22,52,47,54,49,61,49,70,43,69,52,58,56,65,60,72,63,84,65,64,0,103,87,95,76,109,69,103,81,79,82,83,3,0,-93,-91,-85,-69,-110,-97,-110,-95,-337,-330,-331,-129,-211,-219,-220,-121,-175,-191,-575,-554,-2911,-2520,-29995,-29996,-29996,-962]} 1. Nf3 {[%emt 0:00:01]} Nf6 {[%emt 0:00:09]} 2. c4 {[%emt 0:00:02]} g6 {[%emt 0:00:05]} 3. d4 {[%emt 0:00:02]} Bg7 {[%emt 0:00:05]} 4. Nc3 {[%emt 0:00:04]} O-O {[%emt 0:00:06]} 5. Bg5 {[%emt 0:00:07]} c5 {[%emt 0:00:47]} 6. d5 {[%emt 0:00:18]} d6 {[%emt 0:00:10]} 7. e3 {[%emt 0:00:13]} Na6 {[%emt 0:00:53]} 8. Be2 {[%emt 0:02:12]} Nc7 {[%emt 0:00:26]} 9. Qc2 {[%emt 0:00:27] E61: King's Indian: Early deviations for White, including Smyslov System.} (9. Bh4 $14) 9... a6 {[%emt 0:02:24]} 10. a4 {[%emt 0:02:25]} Bd7 {[%emt 0:00:21][%cal Ob7b5]} 11. a5 {[%emt 0:00:22] White is slightly better.} Rb8 {[%emt 0:00:16]} 12. O-O {[%emt 0:01:33]} b5 {[%emt 0:00:45]} 13. axb6 $1 {[%emt 0:02:57]} Rxb6 {[%emt 0:00:05]} 14. Ra2 {[%emt 0:05:23]} Qb8 {[%emt 0:00:54] [#]} 15. Rb1 $146 {[%emt 0:01:01]} ({Predecessor:} 15. h3 Qb7 16. Nd2 Nfxd5 17. cxd5 Nxd5 18. Bf3 Bc6 19. Nxd5 Bxd5 20. b3 Bxf3 21. gxf3 {0-1 (28) Flynn,J (1973)-Kennedy,J (2050) Dublin 2019}) 15... Qb7 {[%emt 0:00:25]} 16. Nd2 {[%emt 0:03:16]} Rb8 {[%emt 0:00:41][%cal Rc7d5]} 17. b3 {[%emt 0:02:09]} h6 {[%emt 0:03:20]} 18. Bh4 {[%emt 0:00:18]} Ra8 {[%emt 0:04:24]} 19. Na4 {[%emt 0:05:44]} Rb4 {[%emt 0:01:11]} 20. Nc3 {[%emt 0:03:36]} ({White should try} 20. e4 $14) 20... Rb8 {[%emt 0:01:48]} (20... Rb6 $1 $11) 21. f4 {[%emt 0:01:11]} Re8 {[%emt 0:05:26]} 22. h3 {[%emt 0:03:46]} Qc8 {[%emt 0:00:22]} 23. Kh2 {[%emt 0:00:45]} g5 {[%emt 0:00:49]} 24. fxg5 {[%emt 0:01:24]} (24. Be1 {is more complex.} gxf4 25. exf4 e6 26. Nde4) 24... Nfxd5 {[%emt 0:00:22]} 25. Nxd5 {[%emt 0:04:45]} Nxd5 {[%emt 0:00:03]} 26. gxh6 {[%emt 0:01:51]} (26. cxd5 $16 Rxh4 27. Bxa6) 26... Nxe3 $11 {[%emt 0:02:52]} 27. h7+ {[%emt 0:02:20]} (27. Qd3 $1 $11 Bd4 28. Bf3) 27... Kh8 $17 {[%emt 0:00:08] Dancing on a razor blade. Black is much more active.} 28. Qd3 {[%emt 0:00:11]} Nf5 {[%emt 0:01:13]} 29. Be1 {[%emt 0:01:09]} Be5+ {[%emt 0:03:40]} 30. Kg1 {[%emt 0:01:25]} Nd4 $36 {[%emt 0:00:14][%mdl 2048] [#] aiming for ...Bf5. Black has strong initiative.} ({Don't do} 30... Kxh7 31. Nf3 $16) 31. Bh5 $2 {[%emt 0:01:07]} (31. g4 $17) 31... Bf5 $19 {[%emt 0:03:11]} 32. Qf1 {[%emt 0:03:21]} Bxh7 $2 {[%emt 0:03:07]} (32... Bxb1 $19 {is more deadly.} 33. Nxb1 Rxb3) 33. Rd1 {[%emt 0:03:40]} (33. Bg4 $17 f5 34. Bh5) 33... Rg8 {[%emt 0:00:48] Threatens to win with ...Qxh3.} 34. Kh1 {[%emt 0:06:13]} Nf5 {[%emt 0:04:26]} ({Worse is} 34... Nxb3 35. Nf3 $11) (34... Bf5 $19 {And now ...Rb8 would win.} 35. h4 f6) 35. Qf3 {[%emt 0:03:29]} (35. Bg4 $17 {might work better.}) 35... Ng3+ {[%emt 0:01:40]} 36. Bxg3 $2 {[%emt 0:02:25]} (36. Kg1 {was the crucial defense.}) 36... Rxg3 {[%emt 0:00:08]} 37. Qxf7 {[%emt 0:00:30] [#]} Rxh3+ $1 {[%emt 0:00:29][%mdl 512]} 38. gxh3 {[%emt 0:01:00]} (38. Kg1 Bd4+) 38... Qxh3+ {[%emt 0:00:04]} 39. Kg1 {[%emt 0:00:14]} Bd4+ {[%emt 0:00:04] Weighted Error Value: White=0.78/Black=0.26 (precise)} (39... Qh2+ $142 40. Kf1 Bd3+ 41. Ke1 Bg3+ 42. Qf2 Bxf2#) 0-1

[Event "Vienna Championship-B 2022"]
[Site "Vienna"]
[Date "2022.09.20"]
[Round "4.7"]
[White "Bytyqi, Kujtim"]
[Black "Deak-Sala, Emilia"]
[Result "0-1"]
[ECO "E73"]
[WhiteElo "1862"]
[BlackElo "1787"]
[Annotator "NA COMBH"]
[PlyCount "54"]
[EventDate "2022.09.17"]
[EventType "swiss"]
[EventCountry "AUT"]
[SourceTitle "playchess.com"]
[Source "ChessBase"]
[SourceQuality "1"]
[TimeControl "5400+30"]

1. d4 {[%emt 0:07:38]} Nf6 {[%emt 0:00:43]} 2. c4 {[%emt 0:00:23]} g6 {[%emt 0:00:13]} 3. Nc3 {[%emt 0:00:09]} Bg7 {[%emt 0:00:03]} 4. e4 {[%emt 0:00:05]} d6 {[%emt 0:00:01]} 5. Be2 {[%emt 0:00:06]} O-O {[%emt 0:00:05]} 6. Be3 {[%emt 0:00:25]} Nbd7 {[%emt 1:32:25]} 7. g4 {[%emt 0:00:13]} c5 {[%emt 0:00:00]} 8. d5 {[%emt 0:00:38]} Qa5 {[%emt 0:00:00]} 9. Qd2 {[%emt 0:05:16]} Ne5 {[%emt 0:00:00]} 10. h3 {[%emt 0:00:24]} Qb4 {[%emt 0:00:00]} 11. b3 {[%emt 0:10:32]} Nfxg4 {[%emt 0:00:00]} 12. hxg4 {[%emt 0:00:38]} Nf3+ {[%emt 0:00:00]} 13. Nxf3 {[%emt 0:02:45]} Bxc3 {[%emt 0:00:00]} 14. Ng5 {[%emt 0:01:18]} f6 {[%emt 0:00:00]} 15. Nf3 {[%emt 0:03:48]} Bxg4 {[%emt 0:00:00]} 16. Rc1 {[%emt 0:00:22]} Bxd2+ {[%emt 0:00:00]} 17. Bxd2 {[%emt 0:00:04]} Qa3 {[%emt 0:00:00]} 18. Rc2 {[%emt 0:04:21]} a5 {[%emt 0:00:00]} 19. Rh6 {[%emt 0:04:18]} a4 {[%emt 0:00:00]} 20. Bc1 {[%emt 0:05:09]} Qb4+ {[%emt 0:00:00]} 21. Bd2 {[%emt 0:00:54]} Qb6 {[%emt 0:00:00]} 22. bxa4 {[%emt 0:00:26]} Qb1+ {[%emt 0:00:00]} 23. Rc1 {[%emt 0:00:05]} Qxe4 {[%emt 0:00:00]} 24. Rc3 {[%emt 0:01:00]} Rxa4 {[%emt 0:00:00]} 25. Re3 {[%emt 0:00:19]} Qb1+ {[%emt 0:00:00]} 26. Bd1 {[%emt 0:00:05]} Rxa2 {[%emt 0:00:00]} 27. Ke2 {[%emt 0:05:13]} Qc1 {[%emt 0:00:00]} 0-1

[Event "Vienna Championship-B 2022"]
[Site "Vienna"]
[Date "2022.09.20"]
[Round "4.9"]
[White "Stinner, David"]
[Black "Reif, Werner"]
[Result "1/2-1/2"]
[WhiteElo "1823"]
[BlackElo "1747"]
[Annotator "NA COMBH"]
[PlyCount "128"]
[EventDate "2022.09.17"]
[EventType "swiss"]
[EventCountry "AUT"]
[SourceTitle "playchess.com"]
[Source "ChessBase"]
[SourceQuality "1"]
[TimeControl "5400+30"]

1. d4 {[%emt 0:00:08]} d5 {[%emt 0:00:07]} 2. c4 {[%emt 0:00:09]} e6 {[%emt 0:00:06]} 3. Nf3 {[%emt 0:00:09]} Nf6 {[%emt 0:00:05]} 4. g3 {[%emt 0:00:07]} Bb4+ {[%emt 0:00:05]} 5. Bd2 {[%emt 0:00:10]} a5 {[%emt 0:00:37]} 6. a3 {[%emt 0:01:31]} Be7 {[%emt 0:00:09]} 7. Bg2 {[%emt 0:00:26]} O-O {[%emt 0:00:10]} 8. Qc2 {[%emt 0:01:34]} dxc4 {[%emt 0:06:42]} 9. Qxc4 {[%emt 0:02:01]} b6 {[%emt 0:00:47]} 10. Ne5 {[%emt 0:04:25]} Ba6 {[%emt 0:01:28]} 11. Qc2 {[%emt 0:01:18]} Ra7 {[%emt 0:00:27]} 12. Bc3 {[%emt 0:02:55]} Nd5 {[%emt 0:04:21]} 13. O-O {[%emt 0:01:45]} c5 {[%emt 0:02:56]} 14. Rd1 {[%emt 0:03:17]} Nxc3 {[%emt 0:00:59]} 15. Nxc3 {[%emt 0:02:36]} cxd4 {[%emt 0:00:48]} 16. e3 {[%emt 0:03:17]} Qc7 {[%emt 0:03:19]} 17. exd4 {[%emt 0:00:28]} Bb7 {[%emt 0:00:34]} 18. Be4 {[%emt 0:08:30]} Bxe4 {[%emt 0:02:05]} 19. Qxe4 {[%emt 0:00:11]} Qb7 {[%emt 0:00:09]} 20. Qxb7 {[%emt 0:02:10]} Rxb7 {[%emt 0:00:01]} 21. Nb5 {[%emt 0:00:47]} Nd7 {[%emt 0:03:28]} 22. Nc6 {[%emt 0:07:18]} Nf6 {[%emt 0:01:23]} 23. Rac1 {[%emt 0:01:47]} Nd5 {[%emt 0:01:03]} 24. Nxe7+ {[%emt 0:02:55]} Rxe7 {[%emt 0:00:07]} 25. Rc6 {[%emt 0:00:33]} h5 {[%emt 0:04:55]} 26. Nc3 {[%emt 0:01:32]} Nxc3 {[%emt 0:01:02]} 27. bxc3 {[%emt 0:00:11]} Rb8 {[%emt 0:00:32]} 28. Rb1 {[%emt 0:00:22]} Reb7 {[%emt 0:02:19]} 29. Rb5 {[%emt 0:00:09]} g6 {[%emt 0:00:53]} 30. f4 {[%emt 0:00:30]} Kf8 {[%emt 0:00:11]} 31. Kf2 {[%emt 0:00:56]} Ke7 {[%emt 0:00:17]} 32. Ke3 {[%emt 0:00:21]} Kd7 {[%emt 0:00:09]} 33. Rc4 {[%emt 0:00:11]} Rc7 {[%emt 0:01:13]} 34. Rxc7+ {[%emt 0:02:19]} Kxc7 {[%emt 0:00:30]} 35. Ke4 {[%emt 0:00:40]} Kc6 {[%emt 0:00:36]} 36. c4 {[%emt 0:00:26]} f6 {[%emt 0:02:33]} 37. a4 {[%emt 0:00:23]} Rb7 {[%emt 0:00:45]} 38. h3 {[%emt 0:02:30]} Re7 {[%emt 0:04:17]} 39. c5 {[%emt 0:04:38]} bxc5 {[%emt 0:02:00]} 40. dxc5 {[%emt 0:03:42]} Rb7 {[%emt 0:01:41]} 41. Rxa5 {[%emt 0:13:48]} Rb4+ {[%emt 0:00:22]} 42. Kd3 {[%emt 0:01:14]} Kd5 {[%emt 0:01:42]} 43. Ra6 {[%emt 0:10:20]} Kxc5 {[%emt 0:02:37]} 44. Rxe6 {[%emt 0:00:29]} Rb3+ {[%emt 0:00:09]} 45. Ke2 {[%emt 0:01:30]} Rxg3 {[%emt 0:00:15]} 46. a5 {[%emt 0:04:13]} Rxh3 {[%emt 0:03:47]} 47. Rxf6 {[%emt 0:00:22]} Rg3 {[%emt 0:01:20]} 48. a6 {[%emt 0:00:26]} h4 {[%emt 0:01:41]} 49. Kf2 {[%emt 0:00:47]} Kd4 {[%emt 0:04:19]} 50. Re6 {[%emt 0:03:35]} Rg4 {[%emt 0:02:47]} 51. Rf6 {[%emt 0:01:52]} Rg3 {[%emt 0:00:43]} 52. a7 {[%emt 0:02:21]} Ra3 {[%emt 0:00:16]} 53. Rxg6 {[%emt 0:00:08]} Rxa7 {[%emt 0:00:14]} 54. Kf3 {[%emt 0:00:27]} Rh7 {[%emt 0:00:25]} 55. Rd6+ {[%emt 0:00:11]} Kc5 {[%emt 0:00:27]} 56. Rd2 {[%emt 0:00:21]} h3 {[%emt 0:00:57]} 57. Rh2 {[%emt 0:00:08]} Kd5 {[%emt 0:01:43]} 58. Rd2+ {[%emt 0:00:27]} Ke6 {[%emt 0:00:13]} 59. Kg3 {[%emt 0:00:15]} Kf5 {[%emt 0:00:58]} 60. Rd5+ {[%emt 0:00:41]} Kf6 {[%emt 0:00:49]} 61. Rd2 {[%emt 0:00:43]} Kf5 {[%emt 0:00:14]} 62. Rh2 {[%emt 0:00:08]} Rh8 {[%emt 0:01:34]} 63. Rxh3 {[%emt 0:00:22]} Rxh3+ {[%emt 0:00:05]} 64. Kxh3 {[%emt 0:00:10]} Kxf4 {[%emt 0:01:31]} 1/2-1/2

[Event "Vienna Championship-B 2022"]
[Site "Vienna"]
[Date "2022.09.20"]
[Round "4.10"]
[White "Ginther, Tobias"]
[Black "Hirsch, Adolf Jun."]
[Result "0-1"]
[ECO "C08"]
[WhiteElo "1766"]
[BlackElo "1731"]
[Annotator "NA COMBH"]
[PlyCount "44"]
[EventDate "2022.09.17"]
[EventType "swiss"]
[EventCountry "AUT"]
[SourceTitle "playchess.com"]
[Source "ChessBase"]
[SourceQuality "1"]
[TimeControl "5400+30"]

1. e4 {[%emt 0:00:58]} e6 {[%emt 0:00:05]} 2. d4 {[%emt 0:00:08]} d5 {[%emt 0:00:04]} 3. Nd2 {[%emt 0:00:09]} c5 {[%emt 0:00:07]} 4. exd5 {[%emt 0:00:19]} exd5 {[%emt 0:00:07]} 5. Ngf3 {[%emt 0:00:17]} Nf6 {[%emt 0:00:23]} 6. Bb5+ {[%emt 0:01:05]} Bd7 {[%emt 0:00:14]} 7. Qe2+ {[%emt 0:01:57]} Be7 {[%emt 0:00:16]} 8. dxc5 {[%emt 0:01:08]} O-O {[%emt 0:00:07]} 9. Bxd7 {[%emt 0:01:10]} Nbxd7 {[%emt 0:00:17]} 10. Nb3 {[%emt 0:00:47]} Re8 {[%emt 0:00:45]} 11. O-O {[%emt 0:00:33]} Bxc5 {[%emt 0:02:26]} 12. Qd3 {[%emt 0:03:09]} Bb6 {[%emt 0:00:37]} 13. Bg5 {[%emt 0:02:35]} h6 {[%emt 0:02:41]} 14. Bh4 {[%emt 0:02:01]} Qc7 {[%emt 0:02:55]} 15. Rfe1 {[%emt 0:04:24]} Qc4 {[%emt 0:03:03]} 16. Qxc4 {[%emt 0:10:10]} dxc4 {[%emt 0:00:09]} 17. Nbd4 {[%emt 0:00:31]} g5 {[%emt 0:00:17]} 18. Nxg5 {[%emt 0:07:20]} hxg5 {[%emt 0:00:43]} 19. Bxg5 {[%emt 0:00:26]} Bxd4 {[%emt 0:00:26]} 20. c3 {[%emt 0:00:38]} Bc5 {[%emt 0:01:52]} 21. h3 {[%emt 0:01:17]} Rxe1+ {[%emt 0:00:58]} 22. Rxe1 {[%emt 0:00:06]} Re8 {[%emt 0:00:23]} 0-1

[Event "Vienna Championship-B 2022"]
[Site "Vienna"]
[Date "2022.09.20"]
[Round "4.14"]
[White "Kunschek, Horst"]
[Black "Pavlov, Alexander"]
[Result "0-1"]
[ECO "C44"]
[WhiteElo "1743"]
[BlackElo "1751"]
[Annotator "NA COMBH"]
[PlyCount "116"]
[EventDate "2022.09.17"]
[EventType "swiss"]
[EventCountry "AUT"]
[SourceTitle "playchess.com"]
[Source "ChessBase"]
[SourceQuality "1"]
[TimeControl "5400+30"]

1. e4 {[%emt 0:00:09]} e5 {[%emt 0:00:04]} 2. Nf3 {[%emt 0:00:09]} Nc6 {[%emt 0:00:03]} 3. d4 {[%emt 0:00:13]} exd4 {[%emt 0:00:51]} 4. c3 {[%emt 0:00:09]} dxc3 {[%emt 0:01:02]} 5. Nxc3 {[%emt 0:00:10]} Bb4 {[%emt 0:02:11]} 6. Bc4 {[%emt 0:00:09]} Bxc3+ {[%emt 0:01:19]} 7. bxc3 {[%emt 0:02:12]} h6 {[%emt 0:00:29]} 8. O-O {[%emt 0:00:14]} Nge7 {[%emt 0:00:14]} 9. h3 {[%emt 0:00:14]} O-O {[%emt 0:01:56]} 10. Re1 {[%emt 0:00:13]} d6 {[%emt 0:00:48]} 11. Be3 {[%emt 0:00:36]} Ng6 {[%emt 0:01:12]} 12. Qc2 {[%emt 0:00:21]} Nge5 {[%emt 0:01:00]} 13. Nxe5 {[%emt 0:01:18]} Nxe5 {[%emt 0:00:21]} 14. Bb3 {[%emt 0:00:42]} Qf6 {[%emt 0:07:55]} 15. f4 {[%emt 0:00:50]} Nc6 {[%emt 0:00:36]} 16. e5 {[%emt 0:01:51]} dxe5 {[%emt 0:06:17]} 17. fxe5 {[%emt 0:00:15]} Qxe5 {[%emt 0:03:07]} 18. Bxh6 {[%emt 0:00:22]} Qf6 {[%emt 0:01:07]} 19. Be3 {[%emt 0:00:38]} Bf5 {[%emt 0:02:33]} 20. Qf2 {[%emt 0:00:20]} Qg6 {[%emt 0:04:43]} 21. Kh2 {[%emt 0:05:49]} Ne5 {[%emt 0:02:23]} 22. Qg3 {[%emt 0:01:54]} Nd3 {[%emt 0:06:04]} 23. Rf1 {[%emt 0:01:02]} Qxg3+ {[%emt 0:00:54]} 24. Kxg3 {[%emt 0:00:13]} Bg6 {[%emt 0:00:21]} 25. Rad1 {[%emt 0:00:34]} Rad8 {[%emt 0:00:28]} 26. Bc2 {[%emt 0:02:22]} Rfe8 {[%emt 0:00:41]} 27. Bg5 {[%emt 0:00:40]} Rd5 {[%emt 0:01:16]} 28. Bxd3 {[%emt 0:02:23]} Rxg5+ {[%emt 0:03:31]} 29. Kf2 {[%emt 0:01:18]} Bxd3 {[%emt 0:03:19]} 30. Rxd3 {[%emt 0:00:04]} Rf5+ {[%emt 0:00:54]} 31. Rf3 {[%emt 0:00:26]} Rxf3+ {[%emt 0:00:14]} 32. Kxf3 {[%emt 0:00:02]} Re6 {[%emt 0:00:28]} 33. Rd1 {[%emt 0:00:07]} Kf8 {[%emt 0:00:56]} 34. Rd4 {[%emt 0:01:07]} Ke7 {[%emt 0:06:42]} 35. c4 {[%emt 0:01:03]} Ra6 {[%emt 0:01:48]} 36. Rd2 {[%emt 0:00:10]} c5 {[%emt 0:01:36]} 37. Rb2 {[%emt 0:00:11]} b6 {[%emt 0:02:37]} 38. Ke4 {[%emt 0:00:11]} Ke6 {[%emt 0:00:32]} 39. Rc2 {[%emt 0:00:36]} Ra3 {[%emt 0:00:51]} 40. Kf4 {[%emt 0:00:36]} f6 {[%emt 0:04:25]} 41. Re2+ {[%emt 0:00:11]} Kd6 {[%emt 0:03:33]} 42. Rc2 {[%emt 0:00:29]} g6 {[%emt 0:01:29]} 43. h4 {[%emt 0:00:29]} Kc6 {[%emt 0:01:48]} 44. g4 {[%emt 0:00:09]} a6 {[%emt 0:00:29]} 45. h5 {[%emt 0:02:26]} gxh5 {[%emt 0:00:24]} 46. gxh5 {[%emt 0:00:06]} Rh3 {[%emt 0:00:27]} 47. Kg4 {[%emt 0:00:10]} Rh1 {[%emt 0:00:31]} 48. Rf2 {[%emt 0:00:18]} b5 {[%emt 0:00:57]} 49. Rxf6+ {[%emt 0:00:19]} Kb7 {[%emt 0:00:03]} 50. cxb5 {[%emt 0:00:14]} axb5 {[%emt 0:00:04]} 51. Rf3 {[%emt 0:01:00]} c4 {[%emt 0:01:42]} 52. Rh3 {[%emt 0:00:19]} Rxh3 {[%emt 0:00:14]} 53. Kxh3 {[%emt 0:00:02]} c3 {[%emt 0:00:04]} 54. h6 {[%emt 0:00:02]} c2 {[%emt 0:00:03]} 55. Kg4 {[%emt 0:00:30]} c1=Q {[%emt 0:00:10]} 56. Kh5 {[%emt 0:00:21]} Qh1+ {[%emt 0:00:11]} 57. Kg6 {[%emt 0:00:10]} Qg2+ {[%emt 0:00:04]} 58. Kh7 {[%emt 0:00:24]} Qxa2 {[%emt 0:00:03]} 0-1